[Event "Titled Tuesday Blitz December 27 Early 2022"]
[White "Diaz, Fernando"]
[Black "Vargas, Mauricio"]
[WhiteFideId "3701255"]
[BlackFideId "4404572"]
[WhiteElo "2121"]
[BlackElo "2035"]
[Result "1-0"]
[Round "08"]
[TimeControl "180+2"]
[Date "2022.12.27"]
[WhiteClock "0:00:05"]
[BlackClock "0:00:01"]

1. e4 {[%clk 0:00:36]}  c6 {[%clk 0:03:00]} 2. d4 {[%clk 0:00:35]}  d5 {[%clk 0:02:50]} 3. exd5 {[%clk 0:00:35]}  cxd5 {[%clk 0:02:50]} 4. Bd3 {[%clk 0:00:36]}  Nc6 {[%clk 0:02:50]} 5. c3 {[%clk 0:00:37]}  Nf6 {[%clk 0:02:49]} 6. Bf4 {[%clk 0:00:38]}  Bg4 {[%clk 0:02:48]} 7. Qb3 {[%clk 0:00:38]}  Bc8 {[%clk 0:02:39]} 8. Nd2 {[%clk 0:00:39]}  g6 {[%clk 0:02:36]} 9. Ngf3 {[%clk 0:00:39]}  Bg7 {[%clk 0:02:37]} 10. h3 {[%clk 0:00:40]}  O-O {[%clk 0:02:36]} 11. O-O {[%clk 0:00:40]}  a6 {[%clk 0:02:36]} 12. Rfe1 {[%clk 0:00:41]}  b5 {[%clk 0:02:27]} 13. Ne5 {[%clk 0:00:38]}  Na5 {[%clk 0:02:23]} 14. Qd1 {[%clk 0:00:37]}  Nc4 {[%clk 0:02:23]} 15. Bxc4 {[%clk 0:00:35]}  bxc4 {[%clk 0:02:09]} 16. Nc6 {[%clk 0:00:36]}  Qb6 {[%clk 0:02:00]} 17. Nxe7+ {[%clk 0:00:34]}  Kh8 {[%clk 0:02:00]} 18. b4 {[%clk 0:00:27]}  a5 {[%clk 0:01:55]} 19. a3 {[%clk 0:00:20]}  Qb7 {[%clk 0:01:48]} 20. Qf3 {[%clk 0:00:18]}  Be6 {[%clk 0:01:45]} 21. Bd6 {[%clk 0:00:18]}  Rfd8 {[%clk 0:01:37]} 22. Bc5 {[%clk 0:00:17]}  Bf8 {[%clk 0:01:33]} 23. Qxf6+ {[%clk 0:00:16]}  Bg7 {[%clk 0:01:29]} 24. Qh4 {[%clk 0:00:17]}  Re8 {[%clk 0:01:13]} 25. Nf3 {[%clk 0:00:17]}  h6 {[%clk 0:01:09]} 26. Ng5 {[%clk 0:00:11]}  Rxe7 {[%clk 0:01:07]} 27. Nxe6 {[%clk 0:00:11]}  Rxe6 {[%clk 0:01:04]} 28. Rxe6 {[%clk 0:00:12]}  fxe6 {[%clk 0:01:03]} 29. Re1 {[%clk 0:00:13]}  Qf7 {[%clk 0:00:59]} 30. Qg4 {[%clk 0:00:13]}  Re8 {[%clk 0:00:56]} 31. h4 {[%clk 0:00:12]}  h5 {[%clk 0:00:56]} 32. Qg3 {[%clk 0:00:12]}  Bh6 {[%clk 0:00:54]} 33. Re2 {[%clk 0:00:11]}  axb4 {[%clk 0:00:41]} 34. axb4 {[%clk 0:00:11]}  Ra8 {[%clk 0:00:40]} 35. b5 {[%clk 0:00:11]}  Ra1+ {[%clk 0:00:37]} 36. Kh2 {[%clk 0:00:12]}  Bf4 {[%clk 0:00:37]} 37. Bd6 {[%clk 0:00:12]}  Bxg3+ {[%clk 0:00:35]} 38. Bxg3 {[%clk 0:00:13]}  Kg7 {[%clk 0:00:28]} 39. b6 {[%clk 0:00:13]}  Rb1 {[%clk 0:00:26]} 40. Bc7 {[%clk 0:00:13]}  Qd7 {[%clk 0:00:22]} 41. Ra2 {[%clk 0:00:12]}  Qc6 {[%clk 0:00:20]} 42. Ra7 {[%clk 0:00:12]}  Kh6 {[%clk 0:00:17]} 43. Ra8 {[%clk 0:00:10]}  Rxb6 {[%clk 0:00:15]} 44. Bf4+ {[%clk 0:00:07]}  g5 {[%clk 0:00:14]} 45. Bxg5+ {[%clk 0:00:06]}  Kg6 {[%clk 0:00:15]} 46. Rg8+ {[%clk 0:00:06]}  Kf7 {[%clk 0:00:14]} 47. Rh8 {[%clk 0:00:06]}  Rb2 {[%clk 0:00:13]} 48. Be3 {[%clk 0:00:05]}  Qd6+ {[%clk 0:00:13]} 49. g3 {[%clk 0:00:05]}  Re2 {[%clk 0:00:12]} 50. Rh7+ {[%clk 0:00:05]}  Kg6 {[%clk 0:00:11]} 51. Rh8 {[%clk 0:00:04]}  Kg7 {[%clk 0:00:11]} 52. Rxh5 {[%clk 0:00:04]}  Qa6 {[%clk 0:00:09]} 53. Rg5+ {[%clk 0:00:04]}  Kf6 {[%clk 0:00:07]} 54. Re5 {[%clk 0:00:05]}  Qa1 {[%clk 0:00:06]} 55. Bg5+ {[%clk 0:00:05]}  Kg6 {[%clk 0:00:03]} 56. Rxe2 {[%clk 0:00:06]}  Qf1 {[%clk 0:00:01]} 57. Rxe6+ {[%clk 0:00:06]}  Kf5 {[%clk 0:00:02]} 58. Rf6+ {[%clk 0:00:05]}  Kg4 {[%clk 0:00:03]} 59. Rf4+ {[%clk 0:00:05]}  Kh5 {[%clk 0:00:04]} 60. g4+ {[%clk 0:00:03]}  Kg6 {[%clk 0:00:01]} 61. Rf6+ {[%clk 0:00:04]}  Kg7 {[%clk 0:00:01]} 62. Kg3 {[%clk 0:00:05]}  Qxf2+ {[%clk 0:00:01]} 63. Kxf2 {[%clk 0:00:05]} 1-0


[Site "https://www.chess.com"]

[Event "Titled Tuesday Blitz December 27 Early 2022"]
[White "Feng, Eric"]
[Black "Yuan, Qingyu"]
[WhiteFideId "30952590"]
[BlackFideId "8609772"]
[WhiteElo "1951"]
[BlackElo "2373"]
[Result "0-1"]
[Round "08"]
[TimeControl "180+2"]
[Date "2022.12.27"]
[WhiteClock "0:00:02"]
[BlackClock "0:00:09"]

1. d4 {[%clk 0:03:00]}  Nf6 {[%clk 0:03:00]} 2. c4 {[%clk 0:03:01]}  e6 {[%clk 0:03:00]} 3. Nf3 {[%clk 0:03:01]}  d5 {[%clk 0:03:00]} 4. g3 {[%clk 0:03:01]}  dxc4 {[%clk 0:03:01]} 5. Bg2 {[%clk 0:03:02]}  c5 {[%clk 0:03:01]} 6. O-O {[%clk 0:03:02]}  Nc6 {[%clk 0:03:02]} 7. Qa4 {[%clk 0:03:02]}  Bd7 {[%clk 0:03:01]} 8. dxc5 {[%clk 0:03:00]}  Na5 {[%clk 0:02:58]} 9. Qc2 {[%clk 0:02:56]}  Bxc5 {[%clk 0:02:45]} 10. Rd1 {[%clk 0:02:56]}  h6 {[%clk 0:02:36]} 11. Ne5 {[%clk 0:02:54]}  Qb6 {[%clk 0:02:08]} 12. e3 {[%clk 0:02:46]}  Bb5 {[%clk 0:01:54]} 13. Nd2 {[%clk 0:02:31]}  O-O {[%clk 0:01:50]} 14. Ndxc4 {[%clk 0:02:32]}  Nxc4 {[%clk 0:01:47]} 15. Nxc4 {[%clk 0:02:32]}  Qa6 {[%clk 0:01:39]} 16. Na5 {[%clk 0:02:13]}  Rac8 {[%clk 0:01:18]} 17. Nxb7 {[%clk 0:02:10]}  Be7 {[%clk 0:00:36]} 18. Qd2 {[%clk 0:01:29]}  Rb8 {[%clk 0:00:26]} 19. a4 {[%clk 0:01:29]}  Bc4 {[%clk 0:00:15]} 20. Qc3 {[%clk 0:01:15]}  Rfc8 {[%clk 0:00:07]} 21. b4 {[%clk 0:00:48]}  Rxb7 {[%clk 0:00:06]} 22. b5 {[%clk 0:00:44]}  Qb6 {[%clk 0:00:04]} 23. Bxb7 {[%clk 0:00:31]}  Qxb7 {[%clk 0:00:04]} 24. Ba3 {[%clk 0:00:27]}  Bd5 {[%clk 0:00:03]} 25. Qd2 {[%clk 0:00:23]}  Ne4 {[%clk 0:00:03]} 26. Qe1 {[%clk 0:00:22]}  Ng5 {[%clk 0:00:03]} 27. Qe2 {[%clk 0:00:05]}  Nf3+ {[%clk 0:00:03]} 28. Kf1 {[%clk 0:00:05]}  Nxh2+ {[%clk 0:00:03]} 29. Kg1 {[%clk 0:00:05]}  Nf3+ {[%clk 0:00:04]} 30. Kf1 {[%clk 0:00:06]}  Ng5 {[%clk 0:00:04]} 31. Bxe7 {[%clk 0:00:02]}  Bc4 {[%clk 0:00:04]} 32. Qxc4 {[%clk 0:00:02]}  Rxc4 {[%clk 0:00:04]} 33. Rd8+ {[%clk 0:00:03]}  Kh7 {[%clk 0:00:04]} 34. Bxg5 {[%clk 0:00:04]}  Qh1+ {[%clk 0:00:04]} 35. Ke2 {[%clk 0:00:04]}  Qxa1 {[%clk 0:00:05]} 36. Bf4 {[%clk 0:00:04]}  Qa2+ {[%clk 0:00:06]} 37. Kf3 {[%clk 0:00:04]}  Rc2 {[%clk 0:00:06]} 38. Rd7 {[%clk 0:00:05]}  Rxf2+ {[%clk 0:00:07]} 39. Kg4 {[%clk 0:00:06]}  Kg6 {[%clk 0:00:07]} 40. e4 {[%clk 0:00:03]}  Qe2+ {[%clk 0:00:08]} 41. Kh3 {[%clk 0:00:02]}  Rh2# {[%clk 0:00:09]} 0-1


[Site "https://www.chess.com"]

[Event "Titled Tuesday Blitz December 27 Early 2022"]
[White "Fernandez Siles, Luis"]
[Black "Sadovsky, Artem"]
[WhiteFideId "2209420"]
[BlackFideId "4155840"]
[WhiteElo "2218"]
[BlackElo "2276"]
[Result "0-1"]
[Round "08"]
[TimeControl "180+2"]
[Date "2022.12.27"]
[WhiteClock "0:00:09"]
[BlackClock "0:01:40"]

1. d4 {[%clk 0:03:00]}  g6 {[%clk 0:02:45]} 2. c4 {[%clk 0:02:59]}  Bg7 {[%clk 0:02:45]} 3. Nf3 {[%clk 0:02:59]}  d6 {[%clk 0:02:45]} 4. Nc3 {[%clk 0:02:59]}  e5 {[%clk 0:02:46]} 5. e4 {[%clk 0:02:58]}  Nc6 {[%clk 0:02:45]} 6. d5 {[%clk 0:02:44]}  Nce7 {[%clk 0:02:44]} 7. h4 {[%clk 0:02:41]}  h6 {[%clk 0:02:40]} 8. h5 {[%clk 0:02:40]}  g5 {[%clk 0:02:40]} 9. Bd3 {[%clk 0:02:38]}  f5 {[%clk 0:02:36]} 10. exf5 {[%clk 0:02:37]}  Bxf5 {[%clk 0:02:34]} 11. Bxf5 {[%clk 0:02:33]}  Nxf5 {[%clk 0:02:35]} 12. Ne4 {[%clk 0:02:32]}  Nf6 {[%clk 0:02:33]} 13. Qd3 {[%clk 0:02:28]}  Nxe4 {[%clk 0:02:32]} 14. Qxe4 {[%clk 0:02:27]}  O-O {[%clk 0:02:33]} 15. Bd2 {[%clk 0:02:21]}  Nd4 {[%clk 0:02:23]} 16. Nxd4 {[%clk 0:02:03]}  exd4 {[%clk 0:02:24]} 17. O-O-O {[%clk 0:02:03]}  Rxf2 {[%clk 0:02:20]} 18. Rhf1 {[%clk 0:01:19]}  Qf6 {[%clk 0:02:15]} 19. Rxf2 {[%clk 0:01:16]}  Qxf2 {[%clk 0:02:01]} 20. Re1 {[%clk 0:00:49]}  Rf8 {[%clk 0:01:49]} 21. Qe7 {[%clk 0:00:41]}  d3 {[%clk 0:01:47]} 22. Rd1 {[%clk 0:00:15]}  Qe2 {[%clk 0:01:41]} 23. Qxc7 {[%clk 0:00:13]}  Bxb2+ {[%clk 0:01:38]} 24. Kxb2 {[%clk 0:00:10]}  Qxd1 {[%clk 0:01:39]} 25. Kc3 {[%clk 0:00:10]}  Qc2+ {[%clk 0:01:39]} 26. Kd4 {[%clk 0:00:10]}  Qxd2 {[%clk 0:01:39]} 27. Qxd6 {[%clk 0:00:09]}  Rf4+ {[%clk 0:01:40]} 0-1


[Site "https://www.chess.com"]

[Event "Titled Tuesday Blitz December 27 Early 2022"]
[White "Garcia Almaguer, Juan Manuel"]
[Black "Rose, Felix"]
[WhiteFideId "5110491"]
[BlackFideId "5105722"]
[WhiteElo "2090"]
[BlackElo "2091"]
[Result "1-0"]
[Round "08"]
[TimeControl "180+2"]
[Date "2022.12.27"]
[WhiteClock "0:01:48"]
[BlackClock "0:00:03"]

1. e4 {[%clk 0:03:00]}  c5 {[%clk 0:02:58]} 2. Nf3 {[%clk 0:02:55]}  e6 {[%clk 0:02:57]} 3. d4 {[%clk 0:02:54]}  cxd4 {[%clk 0:02:58]} 4. Nxd4 {[%clk 0:02:55]}  a6 {[%clk 0:02:59]} 5. c4 {[%clk 0:02:53]}  Nf6 {[%clk 0:02:59]} 6. Nc3 {[%clk 0:02:51]}  Qc7 {[%clk 0:02:58]} 7. a3 {[%clk 0:02:49]}  Nc6 {[%clk 0:02:56]} 8. Be2 {[%clk 0:02:49]}  b6 {[%clk 0:02:52]} 9. f4 {[%clk 0:02:47]}  d6 {[%clk 0:02:49]} 10. Be3 {[%clk 0:02:41]}  Bb7 {[%clk 0:02:47]} 11. O-O {[%clk 0:02:37]}  Be7 {[%clk 0:02:46]} 12. Rc1 {[%clk 0:02:36]}  O-O {[%clk 0:02:46]} 13. Nd5 {[%clk 0:02:34]}  Qd8 {[%clk 0:02:22]} 14. Nxc6 {[%clk 0:02:18]}  Bxc6 {[%clk 0:02:22]} 15. Bxb6 {[%clk 0:02:13]}  Qd7 {[%clk 0:02:16]} 16. Nxe7+ {[%clk 0:02:11]}  Qxe7 {[%clk 0:02:14]} 17. e5 {[%clk 0:02:11]}  dxe5 {[%clk 0:01:57]} 18. fxe5 {[%clk 0:02:12]}  Nd7 {[%clk 0:01:49]} 19. Bc7 {[%clk 0:02:11]}  Qg5 {[%clk 0:00:56]} 20. Bf3 {[%clk 0:02:11]}  Bxf3 {[%clk 0:00:51]} 21. Rxf3 {[%clk 0:02:07]}  Nxe5 {[%clk 0:00:40]} 22. Rg3 {[%clk 0:02:05]}  Nf3+ {[%clk 0:00:24]} 23. Kh1 {[%clk 0:01:49]}  Qc5 {[%clk 0:00:03]} 24. Bd6 {[%clk 0:01:48]} 1-0


[Site "https://www.chess.com"]

[Event "Titled Tuesday Blitz December 27 Early 2022"]
[White "Garcia Ramos, Daniel"]
[Black "Tomb, Maroun"]
[WhiteFideId "32010311"]
[BlackFideId "5300398"]
[WhiteElo "2442"]
[BlackElo "2090"]
[Result "1-0"]
[Round "08"]
[TimeControl "180+2"]
[Date "2022.12.27"]
[WhiteClock "0:00:03"]
[BlackClock "0:00:08"]

1. e4 {[%clk 0:02:51]}  d6 {[%clk 0:02:59]} 2. d4 {[%clk 0:02:50]}  Nf6 {[%clk 0:02:59]} 3. Nc3 {[%clk 0:02:49]}  e5 {[%clk 0:03:00]} 4. Nf3 {[%clk 0:02:47]}  Nbd7 {[%clk 0:03:00]} 5. Bc4 {[%clk 0:02:46]}  Be7 {[%clk 0:03:01]} 6. O-O {[%clk 0:02:46]}  c6 {[%clk 0:03:01]} 7. a4 {[%clk 0:02:46]}  h6 {[%clk 0:03:01]} 8. Re1 {[%clk 0:02:45]}  Qc7 {[%clk 0:03:01]} 9. h3 {[%clk 0:02:44]}  Nf8 {[%clk 0:03:02]} 10. a5 {[%clk 0:02:42]}  Ng6 {[%clk 0:03:02]} 11. d5 {[%clk 0:02:39]}  O-O {[%clk 0:03:02]} 12. a6 {[%clk 0:02:24]}  b5 {[%clk 0:03:02]} 13. Bb3 {[%clk 0:02:10]}  b4 {[%clk 0:03:02]} 14. Nb1 {[%clk 0:02:10]}  cxd5 {[%clk 0:03:00]} 15. exd5 {[%clk 0:02:09]}  Nd7 {[%clk 0:02:53]} 16. Be3 {[%clk 0:02:05]}  f5 {[%clk 0:02:47]} 17. c3 {[%clk 0:02:01]}  f4 {[%clk 0:02:42]} 18. Bd2 {[%clk 0:02:00]}  Nc5 {[%clk 0:02:40]} 19. Bc2 {[%clk 0:01:59]}  Bf5 {[%clk 0:02:40]} 20. Bxf5 {[%clk 0:01:55]}  Rxf5 {[%clk 0:02:41]} 21. Qc2 {[%clk 0:01:51]}  Raf8 {[%clk 0:02:29]} 22. cxb4 {[%clk 0:01:49]}  Nxa6 {[%clk 0:02:29]} 23. Qxc7 {[%clk 0:01:48]}  Nxc7 {[%clk 0:02:30]} 24. Nc3 {[%clk 0:01:40]}  a6 {[%clk 0:02:24]} 25. Kf1 {[%clk 0:01:34]}  Rb8 {[%clk 0:02:23]} 26. Ra4 {[%clk 0:01:33]}  Nf8 {[%clk 0:02:11]} 27. Ke2 {[%clk 0:01:06]}  Nd7 {[%clk 0:02:08]} 28. Kd3 {[%clk 0:01:06]}  Nb6 {[%clk 0:02:05]} 29. Ra5 {[%clk 0:01:06]}  Kf7 {[%clk 0:01:50]} 30. b3 {[%clk 0:01:00]}  g5 {[%clk 0:01:45]} 31. Ke4 {[%clk 0:00:49]}  Kg6 {[%clk 0:01:44]} 32. Rc1 {[%clk 0:00:42]}  h5 {[%clk 0:01:41]} 33. Ne2 {[%clk 0:00:39]}  Ncxd5 {[%clk 0:01:35]} 34. Rxd5 {[%clk 0:00:35]}  Nxd5 {[%clk 0:01:36]} 35. Kxd5 {[%clk 0:00:35]}  g4 {[%clk 0:01:31]} 36. hxg4 {[%clk 0:00:32]}  hxg4 {[%clk 0:01:32]} 37. Nh2 {[%clk 0:00:26]}  Rb5+ {[%clk 0:01:05]} 38. Ke6 {[%clk 0:00:17]}  f3 {[%clk 0:00:42]} 39. gxf3 {[%clk 0:00:15]}  Rf6+ {[%clk 0:00:28]} 40. Kxe7 {[%clk 0:00:15]}  Rb7+ {[%clk 0:00:28]} 41. Ke8 {[%clk 0:00:15]}  gxf3 {[%clk 0:00:22]} 42. Rg1+ {[%clk 0:00:14]}  Kf5 {[%clk 0:00:22]} 43. Nxf3 {[%clk 0:00:10]}  Re6+ {[%clk 0:00:17]} 44. Kf8 {[%clk 0:00:08]}  Rf6+ {[%clk 0:00:14]} 45. Kg8 {[%clk 0:00:07]}  Re6 {[%clk 0:00:14]} 46. Nfd4+ {[%clk 0:00:06]}  exd4 {[%clk 0:00:14]} 47. Nxd4+ {[%clk 0:00:07]}  Kf6 {[%clk 0:00:13]} 48. Bg5+ {[%clk 0:00:07]}  Ke5 {[%clk 0:00:12]} 49. Nxe6 {[%clk 0:00:07]}  Kxe6 {[%clk 0:00:13]} 50. Bd2 {[%clk 0:00:07]}  Kd5 {[%clk 0:00:12]} 51. Rg5+ {[%clk 0:00:07]}  Kc6 {[%clk 0:00:12]} 52. Ra5 {[%clk 0:00:07]}  d5 {[%clk 0:00:11]} 53. Rxa6+ {[%clk 0:00:06]}  Kb5 {[%clk 0:00:12]} 54. Ra5+ {[%clk 0:00:07]}  Kc6 {[%clk 0:00:12]} 55. Rc5+ {[%clk 0:00:07]}  Kd6 {[%clk 0:00:12]} 56. Bc3 {[%clk 0:00:08]}  Ke6 {[%clk 0:00:13]} 57. f4 {[%clk 0:00:07]}  Ra7 {[%clk 0:00:13]} 58. Rc6+ {[%clk 0:00:07]}  Kf5 {[%clk 0:00:12]} 59. Be5 {[%clk 0:00:07]}  Rb7 {[%clk 0:00:12]} 60. Rf6+ {[%clk 0:00:06]}  Ke4 {[%clk 0:00:12]} 61. Re6 {[%clk 0:00:06]}  d4 {[%clk 0:00:12]} 62. Bxd4+ {[%clk 0:00:03]}  Kxd4 {[%clk 0:00:12]} 63. f5 {[%clk 0:00:04]}  Kd5 {[%clk 0:00:13]} 64. Kf8 {[%clk 0:00:03]}  Rxb4 {[%clk 0:00:12]} 65. Kf7 {[%clk 0:00:03]}  Rxb3 {[%clk 0:00:12]} 66. f6 {[%clk 0:00:03]}  Rh3 {[%clk 0:00:10]} 67. Re1 {[%clk 0:00:03]}  Rh7+ {[%clk 0:00:10]} 68. Kg8 {[%clk 0:00:03]}  Rh2 {[%clk 0:00:09]} 69. f7 {[%clk 0:00:03]}  Rg2+ {[%clk 0:00:09]} 70. Kf8 {[%clk 0:00:04]}  Kd6 {[%clk 0:00:09]} 71. Re4 {[%clk 0:00:04]}  Rg1 {[%clk 0:00:09]} 72. Ke8 {[%clk 0:00:03]}  Ra1 {[%clk 0:00:08]} 73. f8=Q+ {[%clk 0:00:03]} 1-0


[Site "https://www.chess.com"]

[Event "Titled Tuesday Blitz December 27 Early 2022"]
[White "Goncalves, Davi Sulzbacher"]
[Black "Itgelt, Khuyagtsogt"]
[WhiteFideId "2154510"]
[BlackFideId "4902912"]
[WhiteElo "2282"]
[BlackElo "2261"]
[Result "1-0"]
[Round "08"]
[TimeControl "180+2"]
[Date "2022.12.27"]
[WhiteClock "0:01:03"]
[BlackClock "0:00:05"]

1. d4 {[%clk 0:03:00]}  Nf6 {[%clk 0:02:59]} 2. Nf3 {[%clk 0:03:01]}  e6 {[%clk 0:02:59]} 3. Bf4 {[%clk 0:03:02]}  d5 {[%clk 0:02:59]} 4. e3 {[%clk 0:03:02]}  Bd6 {[%clk 0:03:00]} 5. Bg3 {[%clk 0:03:03]}  O-O {[%clk 0:03:00]} 6. Bd3 {[%clk 0:03:01]}  c5 {[%clk 0:03:00]} 7. c3 {[%clk 0:03:01]}  b6 {[%clk 0:03:01]} 8. Ne5 {[%clk 0:02:59]}  Qc7 {[%clk 0:02:59]} 9. f4 {[%clk 0:02:57]}  g6 {[%clk 0:02:59]} 10. Bh4 {[%clk 0:02:55]}  Ne8 {[%clk 0:02:53]} 11. Nd2 {[%clk 0:02:54]}  f6 {[%clk 0:02:52]} 12. Ng4 {[%clk 0:02:49]}  Nc6 {[%clk 0:02:44]} 13. O-O {[%clk 0:02:40]}  Qg7 {[%clk 0:02:36]} 14. Qf3 {[%clk 0:02:28]}  h5 {[%clk 0:02:29]} 15. Nf2 {[%clk 0:02:19]}  g5 {[%clk 0:02:27]} 16. fxg5 {[%clk 0:01:51]}  fxg5 {[%clk 0:02:27]} 17. Qxh5 {[%clk 0:01:51]}  gxh4 {[%clk 0:02:24]} 18. Ng4 {[%clk 0:01:52]}  Rf5 {[%clk 0:01:21]} 19. Qxe8+ {[%clk 0:01:42]}  Bf8 {[%clk 0:01:21]} 20. Qxc6 {[%clk 0:01:34]}  Qxg4 {[%clk 0:00:42]} 21. Qxa8 {[%clk 0:01:23]}  h3 {[%clk 0:00:41]} 22. g3 {[%clk 0:01:15]}  Ba6 {[%clk 0:00:05]} 23. Bxa6 {[%clk 0:01:11]}  c4 {[%clk 0:00:05]} 24. Rxf5 {[%clk 0:01:06]}  exf5 {[%clk 0:00:04]} 25. Qxd5+ {[%clk 0:01:05]}  Kh8 {[%clk 0:00:05]} 26. Bxc4 {[%clk 0:01:03]} 1-0


[Site "https://www.chess.com"]

[Event "Titled Tuesday Blitz December 27 Early 2022"]
[White "Guevara Sanchez, Erick Marvin"]
[Black "Vifleemskaia, Svetlana"]
[WhiteFideId "6700136"]
[BlackFideId "4129490"]
[WhiteElo "2073"]
[BlackElo "1971"]
[Result "0-1"]
[Round "08"]
[TimeControl "180+2"]
[Date "2022.12.27"]
[WhiteClock "0:00:14"]
[BlackClock "0:00:42"]

1. e4 {[%clk 0:03:00]}  e5 {[%clk 0:02:58]} 2. Nf3 {[%clk 0:03:00]}  Nc6 {[%clk 0:02:57]} 3. Bc4 {[%clk 0:03:00]}  Nf6 {[%clk 0:02:56]} 4. Qe2 {[%clk 0:02:59]}  Bc5 {[%clk 0:02:55]} 5. d3 {[%clk 0:02:59]}  d6 {[%clk 0:02:54]} 6. c3 {[%clk 0:02:59]}  O-O {[%clk 0:02:54]} 7. Nbd2 {[%clk 0:02:58]}  Bg4 {[%clk 0:02:52]} 8. h3 {[%clk 0:02:57]}  Be6 {[%clk 0:02:52]} 9. Bb3 {[%clk 0:02:52]}  a5 {[%clk 0:02:51]} 10. Bc2 {[%clk 0:02:50]}  a4 {[%clk 0:02:51]} 11. g4 {[%clk 0:02:42]}  b5 {[%clk 0:02:50]} 12. a3 {[%clk 0:02:32]}  Ne7 {[%clk 0:02:47]} 13. Nf1 {[%clk 0:02:26]}  Ng6 {[%clk 0:02:46]} 14. Ng3 {[%clk 0:02:22]}  d5 {[%clk 0:02:41]} 15. Nf5 {[%clk 0:02:15]}  dxe4 {[%clk 0:02:33]} 16. dxe4 {[%clk 0:02:15]}  c6 {[%clk 0:02:30]} 17. Be3 {[%clk 0:02:07]}  Qb6 {[%clk 0:02:29]} 18. g5 {[%clk 0:01:54]}  Bc4 {[%clk 0:02:27]} 19. Bxc5 {[%clk 0:01:41]}  Qxc5 {[%clk 0:02:26]} 20. Qe3 {[%clk 0:01:38]}  Nd7 {[%clk 0:02:15]} 21. h4 {[%clk 0:01:28]}  Nf4 {[%clk 0:02:12]} 22. Rg1 {[%clk 0:01:18]}  Rfe8 {[%clk 0:02:07]} 23. Rd1 {[%clk 0:01:09]}  Qa7 {[%clk 0:01:39]} 24. Qxa7 {[%clk 0:01:03]}  Rxa7 {[%clk 0:01:39]} 25. Nd6 {[%clk 0:01:03]}  Rb8 {[%clk 0:01:22]} 26. Nxc4 {[%clk 0:00:47]}  bxc4 {[%clk 0:01:21]} 27. Rb1 {[%clk 0:00:44]}  Kf8 {[%clk 0:01:17]} 28. Kd2 {[%clk 0:00:42]}  f6 {[%clk 0:01:16]} 29. Nh2 {[%clk 0:00:29]}  Nc5 {[%clk 0:01:11]} 30. Nf1 {[%clk 0:00:25]}  Rd7+ {[%clk 0:01:04]} 31. Kc1 {[%clk 0:00:20]}  Rdb7 {[%clk 0:01:01]} 32. Ne3 {[%clk 0:00:18]}  Ncd3+ {[%clk 0:00:59]} 33. Bxd3 {[%clk 0:00:18]}  Nxd3+ {[%clk 0:00:54]} 34. Kc2 {[%clk 0:00:18]}  Rxb2+ {[%clk 0:00:53]} 35. Rxb2 {[%clk 0:00:17]}  Rxb2+ {[%clk 0:00:54]} 36. Kd1 {[%clk 0:00:14]}  Nxf2+ {[%clk 0:00:53]} 37. Ke1 {[%clk 0:00:14]}  Nd3+ {[%clk 0:00:49]} 38. Kf1 {[%clk 0:00:14]}  Rf2# {[%clk 0:00:42]} 0-1


[Site "https://www.chess.com"]

[Event "Titled Tuesday Blitz December 27 Early 2022"]
[White "Guliev, Logman"]
[Black "Wagner, Dinara"]
[WhiteFideId "13400061"]
[BlackFideId "24157570"]
[WhiteElo "2250"]
[BlackElo "2417"]
[Result "1-0"]
[Round "08"]
[TimeControl "180+2"]
[Date "2022.12.27"]
[WhiteClock "0:00:42"]
[BlackClock "0:00:14"]

1. e4 {[%clk 0:03:00]}  c5 {[%clk 0:02:58]} 2. Nf3 {[%clk 0:03:00]}  e6 {[%clk 0:02:58]} 3. d4 {[%clk 0:02:59]}  cxd4 {[%clk 0:02:59]} 4. Nxd4 {[%clk 0:02:59]}  Nf6 {[%clk 0:03:00]} 5. Bd3 {[%clk 0:02:59]}  Nc6 {[%clk 0:02:59]} 6. Nxc6 {[%clk 0:03:00]}  bxc6 {[%clk 0:02:59]} 7. O-O {[%clk 0:02:58]}  d5 {[%clk 0:02:59]} 8. Nd2 {[%clk 0:02:58]}  Be7 {[%clk 0:02:59]} 9. c4 {[%clk 0:02:59]}  O-O {[%clk 0:02:59]} 10. Qc2 {[%clk 0:02:59]}  g6 {[%clk 0:02:57]} 11. e5 {[%clk 0:02:55]}  Nd7 {[%clk 0:02:56]} 12. Nf3 {[%clk 0:02:55]}  Nc5 {[%clk 0:02:42]} 13. Be2 {[%clk 0:02:49]}  Ne4 {[%clk 0:02:29]} 14. Bh6 {[%clk 0:02:48]}  Re8 {[%clk 0:02:29]} 15. Rad1 {[%clk 0:02:43]}  Qb6 {[%clk 0:02:27]} 16. b3 {[%clk 0:02:35]}  Bc5 {[%clk 0:02:26]} 17. Bd3 {[%clk 0:02:29]}  Nxf2 {[%clk 0:01:20]} 18. Rxf2 {[%clk 0:02:28]}  Ba6 {[%clk 0:01:19]} 19. Rf1 {[%clk 0:02:26]}  dxc4 {[%clk 0:01:17]} 20. Bxc4 {[%clk 0:02:25]}  Bxc4 {[%clk 0:01:16]} 21. Qxc4 {[%clk 0:02:26]}  Rad8 {[%clk 0:01:15]} 22. Kh1 {[%clk 0:01:56]}  Bxf2 {[%clk 0:01:12]} 23. Qf4 {[%clk 0:01:52]}  Bc5 {[%clk 0:00:30]} 24. Ng5 {[%clk 0:01:28]}  Rd7 {[%clk 0:00:25]} 25. Qf6 {[%clk 0:01:15]}  Bf8 {[%clk 0:00:25]} 26. Bxf8 {[%clk 0:01:13]}  Kxf8 {[%clk 0:00:21]} 27. Qh8+ {[%clk 0:00:50]}  Ke7 {[%clk 0:00:20]} 28. Rxf7+ {[%clk 0:00:50]}  Kd8 {[%clk 0:00:20]} 29. Nxe6+ {[%clk 0:00:50]}  Kc8 {[%clk 0:00:17]} 30. Qxe8+ {[%clk 0:00:50]}  Kb7 {[%clk 0:00:17]} 31. Qxd7+ {[%clk 0:00:50]}  Ka6 {[%clk 0:00:18]} 32. Qd3+ {[%clk 0:00:50]}  Ka5 {[%clk 0:00:18]} 33. h3 {[%clk 0:00:47]}  Kb4 {[%clk 0:00:14]} 34. Rf4+ {[%clk 0:00:46]}  Ka3 {[%clk 0:00:14]} 35. Ra4+ {[%clk 0:00:44]}  Kb2 {[%clk 0:00:15]} 36. Qd2+ {[%clk 0:00:43]}  Kb1 {[%clk 0:00:14]} 37. Rc4 {[%clk 0:00:42]} 1-0


[Site "https://www.chess.com"]